[Event "Norway Chess 2015 Blitz"]
[Site "Stavanger"]
[Date "2015.06.15"]
[Round "5"]
[White "Giri, Anish"]
[Black "Grischuk, Alexander"]
[Result "1/2-1/2"]
[ECO "A37"]
[WhiteElo "2771"]
[BlackElo "2839"]
[Annotator ""]
[PlyCount "113"]
[EventDate "2015.??.??"]
[EventCountry "NOR"]
[TimeControl "180+2"]

1. Nf3 {[%emt 0:00:00]} c5 {[%emt 0:00:00]} 2. c4 {[%emt 0:00:01]} Nc6 {[%emt
0:00:00]} 3. g3 {[%emt 0:00:03]} g6 {[%emt 0:00:02]} 4. Bg2 {[%emt 0:00:06]}
Bg7 {[%emt 0:00:01]} 5. Nc3 {[%emt 0:00:01]} d6 {[%emt 0:00:02]} 6. O-O {[%emt
0:00:02]} e6 {[%emt 0:00:01]} 7. e3 {[%emt 0:00:01]} Nge7 {[%emt 0:00:02]} 8.
d4 {[%emt 0:00:00]} O-O {[%emt 0:00:02]} 9. b3 {[%emt 0:00:12]} Nf5 {[%emt 0:
00:29]} 10. Bb2 {[%emt 0:00:18]} cxd4 {[%emt 0:00:07]} 11. Nxd4 {[%emt 0:00:07]
} Ncxd4 {[%emt 0:00:29]} 12. exd4 {[%emt 0:00:02]} Nxd4 {[%emt 0:00:04]} 13.
Qd2 {[%emt 0:00:06]} e5 {[%emt 0:00:34]} 14. Rad1 {[%emt 0:00:43]} Bg4 {[%emt
0:00:14]} 15. f3 {[%emt 0:00:01]} Be6 {[%emt 0:00:05]} 16. f4 {[%emt 0:00:03]}
Qd7 {[%emt 0:00:04]} 17. Nd5 {[%emt 0:00:18]} Rac8 {[%emt 0:00:08]} 18. Qf2 {
[%emt 0:00:24]} Qd8 {[%emt 0:00:33]} 19. fxe5 {[%emt 0:00:05]} dxe5 {[%emt 0:
00:01]} 20. Nf6+ {[%emt 0:00:07]} Bxf6 {[%emt 0:00:02]} 21. Qxf6 {[%emt 0:00:
01]} Qxf6 {[%emt 0:00:02]} 22. Rxf6 {[%emt 0:00:02]} Rcd8 {[%emt 0:00:28]} 23.
Re1 {[%emt 0:00:02]} Nc6 {[%emt 0:00:10]} 24. Bxe5 {[%emt 0:00:20]} Nxe5 {
[%emt 0:00:02]} 25. Rxe5 {[%emt 0:00:01]} b6 {[%emt 0:00:00]} 26. c5 {[%emt 0:
00:08]} Kg7 {[%emt 0:00:03]} 27. Rf2 {[%emt 0:00:03]} bxc5 {[%emt 0:00:03]} 28.
Rxc5 {[%emt 0:00:01]} Rd1+ {[%emt 0:00:01]} 29. Rf1 {[%emt 0:00:01]} Rfd8 {
[%emt 0:00:02]} 30. Rc2 {[%emt 0:00:11]} R1d4 {[%emt 0:00:04]} 31. Rc5 {[%emt
0:00:08]} Rd2 {[%emt 0:00:01]} 32. Ra5 {[%emt 0:00:10]} Rb2 {[%emt 0:00:01]}
33. Rf2 {[%emt 0:00:14]} Rd1+ {[%emt 0:00:02]} 34. Bf1 {[%emt 0:00:01]} Rbb1 {
[%emt 0:00:03]} 35. Kg2 {[%emt 0:00:02]} Bd5+ {[%emt 0:00:04]} 36. Kh3 {[%emt
0:00:01]} Be6+ {[%emt 0:00:00]} 37. Kg2 {[%emt 0:00:01]} Bd5+ {[%emt 0:00:01]}
38. Kh3 {[%emt 0:00:00]} h5 {[%emt 0:00:02]} 39. Bc4 {[%emt 0:00:03]} Bxc4 {
[%emt 0:00:02]} 40. bxc4 {[%emt 0:00:00]} Rb7 {[%emt 0:00:02]} 41. Rc2 {[%emt
0:00:01]} Rc7 {[%emt 0:00:01]} 42. c5 {[%emt 0:00:01]} Rd5 {[%emt 0:00:01]} 43.
Kg2 {[%emt 0:00:04]} g5 {[%emt 0:00:03]} 44. Ra4 {[%emt 0:00:01]} Rdxc5 {[%emt
0:00:03]} 45. Rxc5 {[%emt 0:00:01]} Rxc5 {[%emt 0:00:01]} 46. Rxa7 {[%emt 0:00:
00]} Rc2+ {[%emt 0:00:01]} 47. Kg1 {[%emt 0:00:01]} Kg6 {[%emt 0:00:01]} 48.
Ra5 {[%emt 0:00:01]} g4 {[%emt 0:00:06]} 49. a4 {[%emt 0:00:06]} Ra2 {[%emt 0:
00:01]} 50. Ra8 {[%emt 0:00:04]} Kf5 {[%emt 0:00:01]} 51. Rh8 {[%emt 0:00:07]}
Rxa4 {[%emt 0:00:05]} 52. Rxh5+ {[%emt 0:00:01]} Ke4 {[%emt 0:00:01]} 53. Rb5 {
[%emt 0:00:04]} Ra1+ {[%emt 0:00:02]} 54. Kg2 {[%emt 0:00:01]} Ra2+ {[%emt 0:
00:01]} 55. Kg1 {[%emt 0:00:00]} f5 {[%emt 0:00:02]} 56. Rb4+ {[%emt 0:00:02]}
Ke5 {[%emt 0:00:02]} 57. Rb5+ {[%emt 0:00:00]} 1/2-1/2

[Event "Norway Chess 2015 Blitz"]
[Site "Stavanger"]
[Date "2015.06.15"]
[Round "5"]
[White "Vachier-Lagrave, Maxime"]
[Black "Nakamura, Hikaru"]
[Result "0-1"]
[ECO "B08"]
[WhiteElo "2886"]
[BlackElo "2883"]
[Annotator ""]
[PlyCount "62"]
[EventDate "2015.??.??"]
[EventCountry "NOR"]
[TimeControl "180+2"]

1. Nf3 {[%emt 0:00:00]} g6 {[%emt 0:00:00]} 2. e4 {[%emt 0:00:07]} Bg7 {[%emt
0:00:10]} 3. d4 {[%emt 0:00:05]} d6 {[%emt 0:00:01]} 4. Nc3 {[%emt 0:00:05]}
Nf6 {[%emt 0:00:07]} 5. Be3 {[%emt 0:00:08]} c6 {[%emt 0:00:02]} 6. a4 {[%emt
0:00:07]} a5 {[%emt 0:00:05]} 7. h3 {[%emt 0:00:06]} Na6 {[%emt 0:00:01]} 8.
Be2 {[%emt 0:00:05]} O-O {[%emt 0:00:04]} 9. O-O {[%emt 0:00:02]} Nb4 {[%emt 0:
00:04]} 10. Re1 {[%emt 0:00:09]} Qc7 {[%emt 0:00:12]} 11. Bf4 {[%emt 0:00:06]}
Nh5 {[%emt 0:00:05]} 12. Bh2 {[%emt 0:00:07]} e5 {[%emt 0:00:01]} 13. Bc4 {
[%emt 0:00:14]} Qe7 {[%emt 0:00:29]} 14. Ne2 {[%emt 0:00:12]} d5 {[%emt 0:00:
20]} 15. Bb3 {[%emt 0:00:41]} dxe4 {[%emt 0:00:11]} 16. Nxe5 {[%emt 0:00:02]}
Be6 {[%emt 0:00:01]} 17. Bxe6 {[%emt 0:00:09]} Qxe6 {[%emt 0:00:01]} 18. g4 {
[%emt 0:00:01]} Nf6 {[%emt 0:00:29]} 19. Nf4 {[%emt 0:00:21]} Qc8 {[%emt 0:00:
01]} 20. f3 {[%emt 0:00:11]} exf3 {[%emt 0:00:28]} 21. c3 {[%emt 0:00:01]} f2+
{[%emt 0:00:02]} 22. Kxf2 {[%emt 0:00:01]} Nbd5 {[%emt 0:00:01]} 23. Nfd3 {
[%emt 0:00:11]} Nd7 {[%emt 0:00:08]} 24. Qb3 {[%emt 0:00:14]} Nxe5 {[%emt 0:00:
09]} 25. Bxe5 {[%emt 0:00:03]} f5 {[%emt 0:00:07]} 26. g5 {[%emt 0:00:03]} f4 {
[%emt 0:00:01]} 27. Bxg7 {[%emt 0:00:02]} Kxg7 {[%emt 0:00:01]} 28. Kg2 {[%emt
0:00:16]} Qf5 {[%emt 0:00:02]} 29. Qxb7+ {[%emt 0:00:02]} Kh8 {[%emt 0:00:02]}
30. Ne5 {[%emt 0:00:02]} f3+ {[%emt 0:00:01]} 31. Kf2 {[%emt 0:00:04]} Rab8 {
[%emt 0:00:02]} 0-1

[Event "Norway Chess 2015 Blitz"]
[Site "Stavanger"]
[Date "2015.06.15"]
[Round "6"]
[White "Anand, Viswanathan"]
[Black "Carlsen, Magnus"]
[Result "0-1"]
[ECO "C60"]
[WhiteElo "2767"]
[BlackElo "2933"]
[Annotator ""]
[PlyCount "96"]
[EventDate "2015.??.??"]
[EventCountry "NOR"]
[TimeControl "180+2"]

1. e4 {[%emt 0:00:00]} e5 {[%emt 0:00:01]} 2. Nf3 {[%emt 0:00:00]} Nc6 {[%emt
0:00:02]} 3. Bb5 {[%emt 0:00:02]} g6 {[%emt 0:00:01]} 4. O-O {[%emt 0:00:03]}
Bg7 {[%emt 0:00:01]} 5. c3 {[%emt 0:00:02]} a6 {[%emt 0:00:01]} 6. Ba4 {[%emt
0:00:01]} d6 {[%emt 0:00:01]} 7. d4 {[%emt 0:00:02]} Bd7 {[%emt 0:00:02]} 8.
Bg5 {[%emt 0:00:02]} f6 {[%emt 0:00:01]} 9. Be3 {[%emt 0:00:02]} Nh6 {[%emt 0:
00:02]} 10. dxe5 {[%emt 0:00:02]} dxe5 {[%emt 0:00:12]} 11. h3 {[%emt 0:00:29]}
Nf7 {[%emt 0:00:02]} 12. c4 {[%emt 0:00:06]} O-O {[%emt 0:00:26]} 13. Nc3 {
[%emt 0:00:01]} f5 {[%emt 0:00:23]} 14. Re1 {[%emt 0:00:14]} Re8 {[%emt 0:00:
16]} 15. Nd5 {[%emt 0:00:08]} f4 {[%emt 0:00:43]} 16. Bd2 {[%emt 0:00:16]} g5 {
[%emt 0:00:11]} 17. Bc3 {[%emt 0:00:08]} h5 {[%emt 0:00:33]} 18. Nh2 {[%emt 0:
00:09]} g4 {[%emt 0:00:01]} 19. hxg4 {[%emt 0:00:01]} hxg4 {[%emt 0:00:04]} 20.
Nxg4 {[%emt 0:00:02]} Qh4 {[%emt 0:00:01]} 21. Ndf6+ {[%emt 0:00:15]} Bxf6 {
[%emt 0:00:02]} 22. Qxd7 {[%emt 0:00:03]} Rad8 {[%emt 0:00:10]} 23. Qf5 {[%emt
0:00:28]} Bg7 {[%emt 0:00:14]} 24. Bxc6 {[%emt 0:00:13]} bxc6 {[%emt 0:00:01]}
25. Rad1 {[%emt 0:00:04]} Rd6 {[%emt 0:00:04]} 26. Rxd6 {[%emt 0:00:10]} cxd6 {
[%emt 0:00:01]} 27. c5 {[%emt 0:00:07]} dxc5 {[%emt 0:00:08]} 28. Rd1 {[%emt 0:
00:03]} Rd8 {[%emt 0:00:09]} 29. Rxd8+ Qxd8 {[%emt 0:00:01]} 30. Nxe5 {[%emt 0:
00:13]} Bxe5 {[%emt 0:00:03]} 31. Bxe5 {[%emt 0:00:02]} Nxe5 {[%emt 0:00:00]}
32. Qxe5 {[%emt 0:00:01]} Qd2 {[%emt 0:00:01]} 33. Qc3 {[%emt 0:00:24]} Qd1+ {
[%emt 0:00:01]} 34. Kh2 {[%emt 0:00:00]} Qe2 {[%emt 0:00:04]} 35. b3 {[%emt 0:
00:11]} Qh5+ {[%emt 0:00:03]} 36. Qh3 {[%emt 0:00:01]} Qe2 {[%emt 0:00:01]} 37.
Qf3 {[%emt 0:00:03]} Qd2 {[%emt 0:00:01]} 38. e5 {[%emt 0:00:03]} Kf7 {[%emt 0:
00:01]} 39. Kh3 {[%emt 0:00:03]} Ke7 {[%emt 0:00:02]} 40. Kg4 {[%emt 0:00:02]}
Qxa2 {[%emt 0:00:02]} 41. Qxf4 {[%emt 0:00:02]} Qxb3 {[%emt 0:00:01]} 42. Qf6+
{[%emt 0:00:00]} Ke8 {[%emt 0:00:01]} 43. e6 {[%emt 0:00:01]} Qd1+ {[%emt 0:00:
03]} 44. f3 {[%emt 0:00:03]} Qd4+ {[%emt 0:00:00]} 45. Kf5 {[%emt 0:00:05]}
Qxf6+ {[%emt 0:00:01]} 46. Kxf6 {[%emt 0:00:01]} c4 {[%emt 0:00:01]} 47. g4 {
[%emt 0:00:01]} c3 {[%emt 0:00:00]} 48. g5 {[%emt 0:00:01]} c2 {[%emt 0:00:01]}
0-1

[Event "Norway Chess 2015 Blitz"]
[Site "Stavanger"]
[Date "2015.06.15"]
[Round "6"]
[White "Grischuk, Alexander"]
[Black "Vachier-Lagrave, Maxime"]
[Result "1/2-1/2"]
[ECO "B24"]
[WhiteElo "2839"]
[BlackElo "2886"]
[Annotator ""]
[PlyCount "101"]
[EventDate "2015.??.??"]
[EventCountry "NOR"]
[TimeControl "180+2"]

1. Nc3 {[%emt 0:00:00]} c5 {[%emt 0:00:06]} 2. e4 {[%emt 0:00:01]} Nc6 {[%emt
0:00:03]} 3. Bb5 {[%emt 0:00:06]} Nd4 {[%emt 0:00:02]} 4. Nf3 {[%emt 0:00:01]}
a6 {[%emt 0:00:14]} 5. Bd3 {[%emt 0:00:16]} Nc6 {[%emt 0:00:07]} 6. e5 {[%emt
0:00:41]} e6 {[%emt 0:00:19]} 7. O-O {[%emt 0:00:04]} d5 {[%emt 0:00:04]} 8.
exd6 {[%emt 0:00:04]} Bxd6 {[%emt 0:00:10]} 9. Ne4 {[%emt 0:00:03]} Be7 {[%emt
0:00:02]} 10. b3 {[%emt 0:00:19]} f5 {[%emt 0:00:19]} 11. Ng3 {[%emt 0:00:02]}
Bf6 {[%emt 0:00:03]} 12. Rb1 {[%emt 0:00:05]} g6 {[%emt 0:00:01]} 13. Re1 {
[%emt 0:00:09]} Nge7 {[%emt 0:00:09]} 14. Bb2 {[%emt 0:00:12]} Bxb2 {[%emt 0:
00:02]} 15. Rxb2 {[%emt 0:00:01]} O-O {[%emt 0:00:03]} 16. a4 {[%emt 0:00:29]}
Nd5 {[%emt 0:00:09]} 17. Bc4 {[%emt 0:00:02]} Qf6 {[%emt 0:00:04]} 18. Rb1 {
[%emt 0:00:05]} Bd7 {[%emt 0:00:23]} 19. c3 {[%emt 0:00:05]} Rad8 {[%emt 0:00:
06]} 20. b4 {[%emt 0:00:11]} cxb4 {[%emt 0:00:07]} 21. Bxd5 {[%emt 0:00:02]}
exd5 {[%emt 0:00:02]} 22. cxb4 {[%emt 0:00:01]} f4 {[%emt 0:00:01]} 23. Nf1 {
[%emt 0:00:11]} Bg4 {[%emt 0:00:03]} 24. h3 {[%emt 0:00:04]} Bxf3 {[%emt 0:00:
07]} 25. Qxf3 {[%emt 0:00:02]} Nd4 {[%emt 0:00:04]} 26. Qd3 {[%emt 0:00:03]} f3
{[%emt 0:00:02]} 27. g3 {[%emt 0:00:08]} Ne2+ {[%emt 0:00:02]} 28. Kh2 {[%emt
0:00:02]} d4 {[%emt 0:00:04]} 29. b5 {[%emt 0:00:02]} a5 {[%emt 0:00:06]} 30.
b6 {[%emt 0:00:01]} Kh8 {[%emt 0:00:28]} 31. Rb5 {[%emt 0:00:01]} Rc8 {[%emt 0:
00:04]} 32. Rxa5 {[%emt 0:00:13]} Qxb6 {[%emt 0:00:01]} 33. Rb5 {[%emt 0:00:01]
} Qa6 {[%emt 0:00:08]} 34. Qb3 {[%emt 0:00:01]} Rc7 {[%emt 0:00:05]} 35. Rb1 {
[%emt 0:00:02]} Rff7 {[%emt 0:00:02]} 36. a5 {[%emt 0:00:04]} Qf6 {[%emt 0:00:
04]} 37. Qd5 {[%emt 0:00:02]} Rcd7 {[%emt 0:00:02]} 38. Qe4 {[%emt 0:00:01]}
Rfe7 {[%emt 0:00:01]} 39. Qd3 {[%emt 0:00:03]} h5 {[%emt 0:00:01]} 40. Rb6 {
[%emt 0:00:01]} Qf5 {[%emt 0:00:08]} 41. Qxf5 {[%emt 0:00:06]} gxf5 {[%emt 0:
00:01]} 42. R1b5 {[%emt 0:00:03]} Rf7 {[%emt 0:00:01]} 43. Rh6+ {[%emt 0:00:05]
} Kg7 {[%emt 0:00:01]} 44. Rxh5 {[%emt 0:00:01]} Rc7 {[%emt 0:00:04]} 45. g4 {
[%emt 0:00:05]} Rc1 {[%emt 0:00:04]} 46. Ng3 {[%emt 0:00:01]} Rg1 {[%emt 0:00:
01]} 47. Nxf5+ {[%emt 0:00:07]} Rxf5 {[%emt 0:00:04]} 48. Rhxf5 {[%emt 0:00:02]
} Rg2+ {[%emt 0:00:01]} 49. Kh1 {[%emt 0:00:00]} Rg1+ {[%emt 0:00:01]} 50. Kh2
{[%emt 0:00:01]} Rg2+ {[%emt 0:00:01]} 51. Kh1 1/2-1/2

[Event "Norway Chess 2015 Blitz"]
[Site "Stavanger"]
[Date "2015.06.15"]
[Round "6"]
[White "Hammer, Jon Ludvig"]
[Black "Giri, Anish"]
[Result "0-1"]
[ECO "B46"]
[WhiteElo "2648"]
[BlackElo "2771"]
[Annotator ""]
[PlyCount "100"]
[EventDate "2015.??.??"]
[EventCountry "NOR"]
[TimeControl "180+2"]

1. e4 {[%emt 0:00:00]} c5 {[%emt 0:00:00]} 2. Nf3 {[%emt 0:00:00]} e6 {[%emt 0:
00:00]} 3. d4 {[%emt 0:00:01]} cxd4 {[%emt 0:00:01]} 4. Nxd4 {[%emt 0:00:00]}
Nc6 {[%emt 0:00:02]} 5. Nc3 {[%emt 0:00:07]} a6 {[%emt 0:00:01]} 6. Be3 {[%emt
0:00:01]} Nf6 {[%emt 0:00:01]} 7. Nxc6 {[%emt 0:00:05]} bxc6 {[%emt 0:00:02]}
8. Bd3 {[%emt 0:00:02]} d5 {[%emt 0:00:01]} 9. e5 {[%emt 0:00:27]} Nd7 {[%emt
0:00:02]} 10. f4 {[%emt 0:00:04]} c5 {[%emt 0:00:09]} 11. Bf2 {[%emt 0:00:01]}
g5 {[%emt 0:00:16]} 12. Qh5 {[%emt 0:00:10]} gxf4 {[%emt 0:00:13]} 13. O-O {
[%emt 0:00:01]} Bg7 {[%emt 0:00:25]} 14. Rae1 {[%emt 0:00:16]} c4 {[%emt 0:00:
00]} 15. Nxd5 {[%emt 0:00:36]} cxd3 {[%emt 0:00:20]} 16. Bh4 {[%emt 0:00:07]}
Qa5 {[%emt 0:00:01]} 17. Rxf4 {[%emt 0:00:02]} O-O {[%emt 0:00:55]} 18. Rg4 {
[%emt 0:00:37]} f6 {[%emt 0:00:36]} 19. exf6 {[%emt 0:00:11]} Qc5+ {[%emt 0:00:
19]} 20. Kh1 {[%emt 0:00:09]} Rf7 {[%emt 0:00:08]} 21. Rxe6 {[%emt 0:00:36]}
dxc2 {[%emt 0:00:06]} 22. Ne7+ {[%emt 0:00:07]} Rxe7 {[%emt 0:00:03]} 23. Rxg7+
{[%emt 0:00:03]} Rxg7 {[%emt 0:00:01]} 24. Re8+ {[%emt 0:00:02]} Qf8 {[%emt 0:
00:02]} 25. Rxf8+ {[%emt 0:00:02]} Nxf8 {[%emt 0:00:01]} 26. Qc5 {[%emt 0:00:
02]} Rg4 {[%emt 0:00:01]} 27. Qxc2 {[%emt 0:00:02]} Rxh4 {[%emt 0:00:02]} 28.
Qb3+ {[%emt 0:00:00]} Be6 {[%emt 0:00:02]} 29. Qg3+ {[%emt 0:00:01]} Rg4 {
[%emt 0:00:00]} 30. Qc7 {[%emt 0:00:01]} Bf7 {[%emt 0:00:04]} 31. h3 {[%emt 0:
00:01]} Rg6 {[%emt 0:00:01]} 32. Qc6 {[%emt 0:00:01]} Rb8 {[%emt 0:00:02]} 33.
b3 {[%emt 0:00:01]} a5 {[%emt 0:00:01]} 34. Kh2 {[%emt 0:00:02]} Re8 {[%emt 0:
00:01]} 35. Qb6 {[%emt 0:00:02]} Re2 {[%emt 0:00:01]} 36. Kh1 {[%emt 0:00:01]}
Rgxg2 {[%emt 0:00:01]} 37. Qd6 {[%emt 0:00:02]} Rg6 {[%emt 0:00:03]} 38. a4 {
[%emt 0:00:01]} Re1+ {[%emt 0:00:03]} 39. Kh2 {[%emt 0:00:01]} Re2+ {[%emt 0:
00:00]} 40. Kh1 {[%emt 0:00:00]} Rf2 {[%emt 0:00:01]} 41. Qc6 {[%emt 0:00:02]}
Rf1+ {[%emt 0:00:02]} 42. Kh2 {[%emt 0:00:01]} Rf2+ {[%emt 0:00:00]} 43. Kh1 {
[%emt 0:00:01]} Rf5 {[%emt 0:00:01]} 44. Kh2 {[%emt 0:00:02]} Rfxf6 {[%emt 0:
00:03]} 45. Qc5 {[%emt 0:00:01]} Be8 {[%emt 0:00:05]} 46. h4 {[%emt 0:00:01]}
Ne6 {[%emt 0:00:06]} 47. Qc8 {[%emt 0:00:03]} Rf8 {[%emt 0:00:03]} 48. h5 {
[%emt 0:00:02]} Rgf6 {[%emt 0:00:01]} 49. Kg3 {[%emt 0:00:02]} Bxh5 {[%emt 0:
00:02]} 50. Qc3 {[%emt 0:00:01]} Rf3+ {[%emt 0:00:02]} 0-1

[Event "Norway Chess 2015 Blitz"]
[Site "Stavanger"]
[Date "2015.06.15"]
[Round "6"]
[White "Nakamura, Hikaru"]
[Black "Caruana, Fabiano"]
[Result "1-0"]
[ECO "A33"]
[WhiteElo "2883"]
[BlackElo "2679"]
[Annotator ""]
[PlyCount "63"]
[EventDate "2015.??.??"]
[EventCountry "NOR"]
[TimeControl "180+2"]

1. Nf3 {[%emt 0:00:00]} Nf6 {[%emt 0:00:00]} 2. c4 {[%emt 0:00:04]} c5 {[%emt
0:00:02]} 3. Nc3 {[%emt 0:00:07]} Nc6 {[%emt 0:00:01]} 4. d4 {[%emt 0:00:06]}
cxd4 {[%emt 0:00:02]} 5. Nxd4 {[%emt 0:00:01]} e6 {[%emt 0:00:01]} 6. a3 {
[%emt 0:00:02]} Bc5 {[%emt 0:00:09]} 7. Nb3 {[%emt 0:00:09]} Be7 {[%emt 0:00:
02]} 8. e4 {[%emt 0:00:01]} O-O {[%emt 0:00:03]} 9. Be2 {[%emt 0:00:00]} b6 {
[%emt 0:00:01]} 10. O-O {[%emt 0:00:03]} Ba6 {[%emt 0:00:01]} 11. Be3 {[%emt 0:
00:05]} Rc8 {[%emt 0:00:05]} 12. f4 {[%emt 0:00:24]} d6 {[%emt 0:00:02]} 13.
Rc1 {[%emt 0:00:09]} Nd7 {[%emt 0:00:08]} 14. Nd2 {[%emt 0:00:18]} Bf6 {[%emt
0:00:38]} 15. Nf3 {[%emt 0:00:08]} Na5 {[%emt 0:00:25]} 16. b3 {[%emt 0:00:21]}
Nc5 {[%emt 0:00:20]} 17. Nd2 {[%emt 0:00:30]} Nd7 {[%emt 0:00:25]} 18. Nb5 {
[%emt 0:00:08]} Bxb5 {[%emt 0:00:22]} 19. cxb5 {[%emt 0:00:01]} d5 {[%emt 0:00:
19]} 20. e5 {[%emt 0:00:07]} Be7 {[%emt 0:00:01]} 21. b4 {[%emt 0:00:03]} Nb7 {
[%emt 0:00:02]} 22. Nb3 {[%emt 0:00:01]} Rxc1 {[%emt 0:00:07]} 23. Qxc1 {[%emt
0:00:02]} Qa8 {[%emt 0:00:00]} 24. Qc7 {[%emt 0:00:13]} Rd8 {[%emt 0:00:13]}
25. Nd4 {[%emt 0:00:04]} Qb8 {[%emt 0:00:08]} 26. Qxb8 {[%emt 0:00:09]} Nxb8 {
[%emt 0:00:02]} 27. Nc6 {[%emt 0:00:04]} Re8 {[%emt 0:00:04]} 28. Nxa7 {[%emt
0:00:01]} Nd7 {[%emt 0:00:01]} 29. Rc1 {[%emt 0:00:02]} Ra8 {[%emt 0:00:08]}
30. Rc7 {[%emt 0:00:09]} Rxa7 {[%emt 0:00:01]} 31. Rxd7 {[%emt 0:00:01]} Kf8 {
[%emt 0:00:02]} 32. Bxb6 {[%emt 0:00:02]} 1-0

[Event "Norway Chess 2015 Blitz"]
[Site "Stavanger"]
[Date "2015.06.15"]
[Round "6"]
[White "Topalov, Veselin"]
[Black "Aronian, Levon"]
[Result "0-1"]
[ECO "C54"]
[WhiteElo "2641"]
[BlackElo "2816"]
[Annotator ""]
[PlyCount "73"]
[EventDate "2015.??.??"]
[EventCountry "NOR"]
[TimeControl "180+2"]

1. e4 {[%emt 0:00:00]} e5 {[%emt 0:00:00]} 2. Nf3 {[%emt 0:00:02]} Nc6 {[%emt
0:00:00]} 3. Bc4 {[%emt 0:00:02]} Bc5 {[%emt 0:00:03]} 4. c3 {[%emt 0:00:02]}
Nf6 {[%emt 0:00:02]} 5. d3 {[%emt 0:00:01]} a6 {[%emt 0:00:04]} 6. O-O {[%emt
0:00:04]} d6 {[%emt 0:00:09]} 7. a4 {[%emt 0:00:02]} Ba7 {[%emt 0:00:08]} 8. h3
{[%emt 0:00:03]} Ne7 {[%emt 0:00:16]} 9. Re1 {[%emt 0:00:30]} Ng6 {[%emt 0:00:
04]} 10. Be3 {[%emt 0:00:16]} Bxe3 {[%emt 0:00:03]} 11. Rxe3 {[%emt 0:00:01]}
O-O {[%emt 0:00:27]} 12. Nbd2 {[%emt 0:00:02]} d5 {[%emt 0:00:06]} 13. exd5 {
[%emt 0:00:09]} Nxd5 {[%emt 0:00:01]} 14. Bxd5 {[%emt 0:00:01]} Qxd5 {[%emt 0:
00:02]} 15. Qb3 {[%emt 0:00:03]} Qxb3 {[%emt 0:00:16]} 16. Nxb3 {[%emt 0:00:02]
} f6 {[%emt 0:00:01]} 17. d4 {[%emt 0:00:02]} exd4 {[%emt 0:00:02]} 18. Nfxd4 {
[%emt 0:00:08]} Ne5 {[%emt 0:00:33]} 19. a5 {[%emt 0:00:06]} Rd8 {[%emt 0:00:
33]} 20. Ra4 {[%emt 0:00:29]} b6 {[%emt 0:00:23]} 21. axb6 {[%emt 0:00:15]}
cxb6 {[%emt 0:00:01]} 22. f4 {[%emt 0:00:01]} Bd7 {[%emt 0:00:14]} 23. Rb4 {
[%emt 0:00:06]} a5 {[%emt 0:00:01]} 24. fxe5 {[%emt 0:00:13]} axb4 {[%emt 0:00:
01]} 25. exf6 {[%emt 0:00:03]} bxc3 {[%emt 0:00:04]} 26. bxc3 {[%emt 0:00:04]}
gxf6 {[%emt 0:00:01]} 27. Nd2 {[%emt 0:00:02]} Be8 {[%emt 0:00:13]} 28. Ne4 {
[%emt 0:00:01]} Bg6 {[%emt 0:00:01]} 29. Nxf6+ {[%emt 0:00:01]} Kf7 {[%emt 0:
00:02]} 30. Ng4 {[%emt 0:00:01]} Re8 {[%emt 0:00:01]} 31. Ne5+ {[%emt 0:00:01]}
Kg7 {[%emt 0:00:01]} 32. h4 {[%emt 0:00:04]} Ra5 {[%emt 0:00:03]} 33. Ndc6 {
[%emt 0:00:01]} Rc5 {[%emt 0:00:01]} 34. Kf2 {[%emt 0:00:02]} Re6 {[%emt 0:00:
02]} 35. Nxg6 {[%emt 0:00:25]} Rxe3 {[%emt 0:00:01]} 36. Kxe3 {[%emt 0:00:01]}
Rxc3+ {[%emt 0:00:01]} 37. Kd4 0-1

[Event "Norway Chess 2015 Blitz"]
[Site "Stavanger"]
[Date "2015.06.15"]
[Round "7"]
[White "Carlsen, Magnus"]
[Black "Nakamura, Hikaru"]
[Result "1-0"]
[ECO "A04"]
[WhiteElo "2933"]
[BlackElo "2883"]
[Annotator ""]
[PlyCount "127"]
[EventDate "2015.??.??"]
[EventCountry "NOR"]
[TimeControl "180+2"]

1. Nf3 {[%emt 0:00:05]} g6 {[%emt 0:00:00]} 2. e4 {[%emt 0:00:02]} Bg7 {[%emt
0:00:00]} 3. d4 {[%emt 0:00:01]} d6 {[%emt 0:00:00]} 4. Bc4 {[%emt 0:00:02]} c6
{[%emt 0:00:11]} 5. Bb3 {[%emt 0:00:02]} d5 {[%emt 0:00:12]} 6. Qe2 {[%emt 0:
00:07]} dxe4 {[%emt 0:00:35]} 7. Qxe4 {[%emt 0:00:01]} Nf6 {[%emt 0:00:01]} 8.
Qh4 {[%emt 0:00:05]} h6 {[%emt 0:00:04]} 9. Ne5 {[%emt 0:00:04]} e6 {[%emt 0:
00:01]} 10. c3 {[%emt 0:00:02]} Nbd7 {[%emt 0:00:08]} 11. Nc4 {[%emt 0:00:07]}
Nb6 {[%emt 0:00:04]} 12. Nba3 {[%emt 0:00:03]} Nxc4 {[%emt 0:00:27]} 13. Nxc4 {
[%emt 0:00:01]} Qe7 {[%emt 0:00:00]} 14. O-O {[%emt 0:00:08]} Nd5 {[%emt 0:00:
14]} 15. Qg3 {[%emt 0:00:01]} O-O {[%emt 0:00:03]} 16. Re1 {[%emt 0:00:07]} c5
{[%emt 0:00:10]} 17. Nd6 {[%emt 0:00:02]} Qc7 {[%emt 0:00:23]} 18. Bxd5 {[%emt
0:00:13]} exd5 {[%emt 0:00:01]} 19. Bf4 {[%emt 0:00:01]} g5 {[%emt 0:00:14]}
20. Be3 {[%emt 0:00:14]} c4 {[%emt 0:00:13]} 21. h4 {[%emt 0:00:13]} f6 {[%emt
0:00:03]} 22. Nxc8 {[%emt 0:01:00]} Raxc8 {[%emt 0:00:01]} 23. Qg4 {[%emt 0:00:
11]} Rcd8 {[%emt 0:00:11]} 24. Bd2 {[%emt 0:00:12]} Qd7 {[%emt 0:00:11]} 25.
Qxd7 {[%emt 0:00:02]} Rxd7 {[%emt 0:00:00]} 26. f4 {[%emt 0:00:02]} gxf4 {
[%emt 0:00:07]} 27. h5 {[%emt 0:00:01]} Kf7 {[%emt 0:00:04]} 28. Bxf4 {[%emt 0:
00:04]} Rg8 {[%emt 0:00:01]} 29. Re3 {[%emt 0:00:03]} Bf8 {[%emt 0:00:04]} 30.
Rf1 {[%emt 0:00:01]} Re7 {[%emt 0:00:03]} 31. Rxe7+ {[%emt 0:00:05]} Bxe7 {
[%emt 0:00:02]} 32. Kf2 {[%emt 0:00:02]} f5 {[%emt 0:00:03]} 33. Re1 {[%emt 0:
00:13]} Bf6 {[%emt 0:00:01]} 34. Kf3 {[%emt 0:00:04]} b5 {[%emt 0:00:04]} 35.
g3 {[%emt 0:00:15]} a5 {[%emt 0:00:01]} 36. a3 {[%emt 0:00:01]} Ra8 {[%emt 0:
00:04]} 37. Ra1 {[%emt 0:00:05]} Re8 {[%emt 0:00:05]} 38. Rb1 {[%emt 0:00:01]}
Ra8 {[%emt 0:00:03]} 39. b3 {[%emt 0:00:02]} b4 {[%emt 0:00:03]} 40. axb4 {
[%emt 0:00:06]} axb4 {[%emt 0:00:00]} 41. bxc4 {[%emt 0:00:02]} Ra3 {[%emt 0:
00:02]} 42. Rxb4 {[%emt 0:00:01]} Rxc3+ {[%emt 0:00:03]} 43. Ke2 {[%emt 0:00:
01]} dxc4 44. d5 {[%emt 0:00:02]} Rd3 {[%emt 0:00:06]} 45. Rb7+ {[%emt 0:00:02]
} Ke8 {[%emt 0:00:02]} 46. d6 {[%emt 0:00:00]} Rd5 {[%emt 0:00:03]} 47. Rh7 {
[%emt 0:00:03]} c3 {[%emt 0:00:01]} 48. Rxh6 {[%emt 0:00:01]} Bg7 {[%emt 0:00:
00]} 49. Re6+ Kf7 50. Re7+ Kf6 51. Rc7 Bf8 52. Rxc3 {[%emt 0:00:06]} Ra5 {
[%emt 0:00:10]} 53. Rd3 {[%emt 0:00:04]} Ra8 {[%emt 0:00:00]} 54. d7 Be7 55.
Bc7 {[%emt 0:00:03]} Kg5 {[%emt 0:00:03]} 56. d8=Q {[%emt 0:00:03]} Bxd8 {
[%emt 0:00:00]} 57. Bxd8+ {[%emt 0:00:02]} Kxh5 {[%emt 0:00:01]} 58. Kf3 {
[%emt 0:00:01]} Ra1 {[%emt 0:00:02]} 59. Bc7 {[%emt 0:00:02]} Rf1+ {[%emt 0:00:
01]} 60. Kg2 {[%emt 0:00:01]} Ra1 {[%emt 0:00:01]} 61. Rd4 {[%emt 0:00:02]} Kg5
{[%emt 0:00:01]} 62. Bf4+ {[%emt 0:00:01]} Kh5 {[%emt 0:00:01]} 63. Rd6 {[%emt
0:00:03]} Rb1 {[%emt 0:00:03]} 64. Rh6+ {[%emt 0:00:01]} 1-0